[Event "Early-Titled-Tuesday-Blitz-March-12-2024"]
[Site "Chess.com"]
[Date "2024.03.12"]
[Round "6"]
[White "BilodeauA"]
[Black "Hikaru"]
[Result "0-1"]
[WhiteElo "2998"]
[BlackElo "3228"]
[TimeControl "180+1"]
[EndTime "9:06:32 PDT"]
[Termination "Hikaru won by resignation"]

1. e4 {[%clk 0:03:00.9]} 1... e6 {[%clk 0:02:58.9]} 2. d4 {[%clk 0:03:00.1]}
2... d5 {[%clk 0:02:59.8]} 3. Nd2 {[%clk 0:02:59.5]} 3... h6 {[%clk 0:02:57.2]}
4. Bd3 {[%clk 0:02:58.8]} 4... a6 {[%clk 0:02:54.9]} 5. Ngf3 {[%clk 0:02:57.3]}
5... Nf6 {[%clk 0:02:54.8]} 6. Qe2 {[%clk 0:02:53.6]} 6... c5 {[%clk 0:02:55]}
7. dxc5 {[%clk 0:02:53.3]} 7... Bxc5 {[%clk 0:02:53]} 8. O-O {[%clk 0:02:53.4]}
8... O-O {[%clk 0:02:52.3]} 9. e5 {[%clk 0:02:36.4]} 9... Nfd7 {[%clk
0:02:48.6]} 10. Nb3 {[%clk 0:02:37]} 10... Bb6 {[%clk 0:02:48.4]} 11. Bf4 {[%clk
0:02:33]} 11... Nc6 {[%clk 0:02:47.4]} 12. c3 {[%clk 0:02:33]} 12... f6 {[%clk
0:02:35.2]} 13. exf6 {[%clk 0:02:26.3]} 13... Rxf6 {[%clk 0:02:27]} 14. Bg3
{[%clk 0:02:21.6]} 14... e5 {[%clk 0:02:27.5]} 15. Bc2 {[%clk 0:01:41.4]} 15...
e4 {[%clk 0:02:23.2]} 16. Nfd4 {[%clk 0:01:41.3]} 16... Nxd4 {[%clk 0:02:23.4]}
17. Nxd4 {[%clk 0:01:30.7]} 17... Rf7 {[%clk 0:02:13.9]} 18. Rad1 {[%clk
0:01:26.8]} 18... Nc5 {[%clk 0:02:01.2]} 19. f3 {[%clk 0:01:25.7]} 19... exf3
{[%clk 0:01:47.5]} 20. gxf3 {[%clk 0:01:26.6]} 20... Bh3 {[%clk 0:01:46.4]} 21.
Rfe1 {[%clk 0:01:25.4]} 21... Ne6 {[%clk 0:01:38.8]} 22. Kh1 {[%clk 0:01:24.7]}
22... Nxd4 {[%clk 0:01:37.9]} 23. cxd4 {[%clk 0:01:25.6]} 23... Qf6 {[%clk
0:01:37.8]} 24. Bb3 {[%clk 0:00:45.2]} 24... Rd8 {[%clk 0:01:37.2]} 25. Rd3
{[%clk 0:00:43.6]} 25... Bf5 {[%clk 0:01:32.6]} 26. Re3 {[%clk 0:00:41.4]} 26...
Bxd4 {[%clk 0:01:26.8]} 27. Re8+ {[%clk 0:00:41.4]} 27... Kh7 {[%clk 0:01:13.8]}
28. Rxd8 {[%clk 0:00:41.6]} 28... Qxd8 {[%clk 0:01:14.7]} 29. Rd1 {[%clk
0:00:40.7]} 29... Qf6 {[%clk 0:01:13.6]} 30. Bxd5 {[%clk 0:00:40.2]} 30... Re7
{[%clk 0:01:14]} 31. Qc4 {[%clk 0:00:37.5]} 31... Bxb2 {[%clk 0:01:12.5]} 32.
Bh4 {[%clk 0:00:33.6]} 32... g5 {[%clk 0:01:12.4]} 33. Bg3 {[%clk 0:00:34]}
33... Be5 {[%clk 0:01:12.6]} 34. Kg2 {[%clk 0:00:26.7]} 34... b5 {[%clk
0:01:11.5]} 35. Qb4 {[%clk 0:00:11.6]} 35... Bxg3 {[%clk 0:01:10.2]} 36. hxg3
{[%clk 0:00:12.5]} 36... Re2+ {[%clk 0:01:09.9]} 37. Kf1 {[%clk 0:00:13]} 37...
Re8 {[%clk 0:00:54.9]} 38. Kf2 {[%clk 0:00:12.3]} 38... Qb6+ {[%clk 0:00:54.4]}
39. Qd4 {[%clk 0:00:10.4]} 39... Qxd4+ {[%clk 0:00:47.7]} 40. Rxd4 {[%clk
0:00:11.3]} 40... Rd8 {[%clk 0:00:48.1]} 41. Ke3 {[%clk 0:00:11.8]} 41... Kg7
{[%clk 0:00:48]} 42. Bb7 {[%clk 0:00:11.5]} 42... Re8+ {[%clk 0:00:41.7]} 43.
Kf2 {[%clk 0:00:09.5]} 43... Re6 {[%clk 0:00:41.1]} 44. Bc8 {[%clk 0:00:07.8]}
44... Rf6 {[%clk 0:00:41.4]} 45. Bxf5 {[%clk 0:00:06.4]} 45... Rxf5 {[%clk
0:00:42.3]} 46. Rd7+ {[%clk 0:00:07]} 46... Kg6 {[%clk 0:00:42.2]} 47. Ke3
{[%clk 0:00:05.8]} 47... Re5+ {[%clk 0:00:39.8]} 48. Kd4 {[%clk 0:00:06.3]}
48... Re6 {[%clk 0:00:40.2]} 49. Kd5 {[%clk 0:00:05.7]} 49... Rf6 {[%clk
0:00:39.1]} 50. Ke4 {[%clk 0:00:05.9]} 50... h5 {[%clk 0:00:39.3]} 51. f4 {[%clk
0:00:06.1]} 51... gxf4 {[%clk 0:00:39.1]} 52. gxf4 {[%clk 0:00:06.6]} 52... Re6+
{[%clk 0:00:39.5]} 53. Kf3 {[%clk 0:00:06.5]} 53... Rc6 {[%clk 0:00:38.7]} 54.
Rd5 {[%clk 0:00:04.9]} 54... Rc3+ {[%clk 0:00:34.4]} 55. Ke4 {[%clk 0:00:05]}
55... Ra3 {[%clk 0:00:35.1]} 56. Rd6+ {[%clk 0:00:02.9]} 56... Kg7 {[%clk
0:00:35.7]} 57. f5 {[%clk 0:00:02.3]} 57... h4 {[%clk 0:00:35.2]} 58. Rd7+
{[%clk 0:00:01.6]} 58... Kf6 {[%clk 0:00:35.5]} 59. Rd6+ {[%clk 0:00:02.2]}
59... Kf7 {[%clk 0:00:36]} 60. Rh6 {[%clk 0:00:02.1]} 60... h3 {[%clk
0:00:36.3]} 61. Ke5 {[%clk 0:00:02.5]} 61... Kg7 {[%clk 0:00:35.7]} 62. Rg6+
{[%clk 0:00:02.4]} 62... Kh7 {[%clk 0:00:35.9]} 63. Rg4 {[%clk 0:00:03.2]} 63...
Ra4 {[%clk 0:00:35.4]} 64. Rg1 {[%clk 0:00:01.4]} 64... Rh4 {[%clk 0:00:35.8]}
65. f6 {[%clk 0:00:01.7]} 65... h2 {[%clk 0:00:36.3]} 66. Rh1 {[%clk 0:00:01.9]}
66... Kg8 {[%clk 0:00:36.4]} 67. Ke6 {[%clk 0:00:02.4]} 67... Kf8 {[%clk
0:00:36.8]} 68. f7 {[%clk 0:00:02]} 68... Rh6+ {[%clk 0:00:36.3]} 0-1

[Event "Early-Titled-Tuesday-Blitz-March-12-2024"]
[Site "Chess.com"]
[Date "2024.03.12"]
[Round "6"]
[White "david_gomez"]
[Black "vovachesss"]
[Result "1-0"]
[WhiteElo "2631"]
[BlackElo "2782"]
[TimeControl "180+1"]
[EndTime "9:06:38 PDT"]
[Termination "david_gomez won on time"]

1. e4 {[%clk 0:02:58.6]} 1... e5 {[%clk 0:02:55.5]} 2. Nc3 {[%clk 0:02:52]} 2...
Bc5 {[%clk 0:02:54.1]} 3. f4 {[%clk 0:02:49.8]} 3... d6 {[%clk 0:02:54]} 4. Nf3
{[%clk 0:02:49.2]} 4... Nc6 {[%clk 0:02:54.1]} 5. Na4 {[%clk 0:02:44.1]} 5...
Nf6 {[%clk 0:02:40.5]} 6. Nxc5 {[%clk 0:02:34.3]} 6... dxc5 {[%clk 0:02:39.4]}
7. fxe5 {[%clk 0:02:28.7]} 7... Ng4 {[%clk 0:02:26.4]} 8. Bb5 {[%clk 0:02:27.9]}
8... Bd7 {[%clk 0:02:25.1]} 9. Bxc6 {[%clk 0:02:27]} 9... Bxc6 {[%clk 0:02:25]}
10. d3 {[%clk 0:02:27.9]} 10... Qe7 {[%clk 0:01:28.3]} 11. Bg5 {[%clk
0:02:26.2]} 11... Qe6 {[%clk 0:01:22.7]} 12. Bf4 {[%clk 0:02:26.1]} 12... f6
{[%clk 0:00:33]} 13. O-O {[%clk 0:02:24.9]} 13... fxe5 {[%clk 0:00:24]} 14. Ng5
{[%clk 0:02:23.6]} 14... Qd7 {[%clk 0:00:22.6]} 15. Bd2 {[%clk 0:02:05.5]} 15...
Qd4+ {[%clk 0:00:18.1]} 16. Kh1 {[%clk 0:02:04.5]} 16... Nf2+ {[%clk 0:00:18.8]}
17. Rxf2 {[%clk 0:02:04.4]} 17... Qxf2 {[%clk 0:00:19.7]} 18. Qh5+ {[%clk
0:01:53.7]} 18... g6 {[%clk 0:00:20]} 19. Qg4 {[%clk 0:01:39.9]} 19... Bd7
{[%clk 0:00:20.3]} 20. Qg3 {[%clk 0:01:40.5]} 20... Qxg3 {[%clk 0:00:17.1]} 21.
hxg3 {[%clk 0:01:41.4]} 21... Ke7 {[%clk 0:00:15.7]} 22. Bc3 {[%clk 0:01:39.7]}
22... Rhf8 {[%clk 0:00:06.7]} 23. Nf3 {[%clk 0:01:32.5]} 23... Rxf3 {[%clk
0:00:06.6]} 24. gxf3 {[%clk 0:01:32.3]} 24... Ke6 {[%clk 0:00:04.7]} 25. Kg2
{[%clk 0:01:32.5]} 25... h5 {[%clk 0:00:04.4]} 26. a3 {[%clk 0:01:30.2]} 26...
b6 {[%clk 0:00:02]} 27. b4 {[%clk 0:01:28.5]} 27... cxb4 {[%clk 0:00:01.6]} 28.
axb4 {[%clk 0:01:29.4]} 28... a6 {[%clk 0:00:02.4]} 29. Bb2 {[%clk 0:01:28.4]}
29... Bc8 {[%clk 0:00:01.8]} 30. Kf2 {[%clk 0:01:27.8]} 30... Bb7 {[%clk
0:00:02.3]} 31. Ke3 {[%clk 0:01:28.4]} 31... Rf8 {[%clk 0:00:03]} 32. c3 {[%clk
0:01:24.6]} 32... Rf7 {[%clk 0:00:03.4]} 33. d4 {[%clk 0:01:24.8]} 33... exd4+
{[%clk 0:00:03.5]} 34. cxd4 {[%clk 0:01:25.7]} 34... Kd7 {[%clk 0:00:03.4]} 35.
d5 {[%clk 0:01:24.3]} 35... c6 {[%clk 0:00:03]} 36. dxc6+ {[%clk 0:01:21.8]}
36... Kxc6 {[%clk 0:00:03.9]} 37. Bd4 {[%clk 0:01:18.3]} 37... Kb5 {[%clk
0:00:03.9]} 38. f4 {[%clk 0:01:17.9]} 38... Re7 {[%clk 0:00:03.4]} 39. e5 {[%clk
0:01:18]} 39... Rc7 {[%clk 0:00:03.5]} 40. Re1 {[%clk 0:01:10]} 40... Rc6 {[%clk
0:00:02.6]} 41. f5 {[%clk 0:01:06.5]} 41... Bc8 {[%clk 0:00:03.4]} 42. f6 {[%clk
0:00:58.3]} 42... Be6 {[%clk 0:00:03.3]} 43. Rb1 {[%clk 0:00:49.8]} 43... Bf7
{[%clk 0:00:03.2]} 44. Kd2 {[%clk 0:00:38.2]} 44... Rc4 {[%clk 0:00:03.8]} 45.
Bc3 {[%clk 0:00:38.6]} 45... Rg4 {[%clk 0:00:03.5]} 46. Re1 {[%clk 0:00:38]}
46... Be6 {[%clk 0:00:03.2]} 47. Re3 {[%clk 0:00:38.2]} 47... Rc4 {[%clk
0:00:02.8]} 48. Rf3 {[%clk 0:00:34.8]} 48... Rc7 {[%clk 0:00:03.1]} 49. Rd3
{[%clk 0:00:33.3]} 49... a5 {[%clk 0:00:02.8]} 50. bxa5 {[%clk 0:00:32.8]} 50...
bxa5 {[%clk 0:00:03.7]} 51. Rd6 {[%clk 0:00:33.4]} 51... Bc4 {[%clk 0:00:02.9]}
52. e6 {[%clk 0:00:32.7]} 52... Kc5 {[%clk 0:00:01.9]} 53. e7 {[%clk 0:00:28.3]}
53... Bf7 {[%clk 0:00:02.3]} 54. Rd8 {[%clk 0:00:28]} 54... Rc6 {[%clk
0:00:01.8]} 55. Rf8 {[%clk 0:00:25.8]} 55... Rd6+ {[%clk 0:00:01.5]} 56. Kc1
{[%clk 0:00:26.3]} 56... Kc4 {[%clk 0:00:01.3]} 57. Rxf7 {[%clk 0:00:25.5]} 1-0

[Event "Early-Titled-Tuesday-Blitz-March-12-2024"]
[Site "Chess.com"]
[Date "2024.03.12"]
[Round "6"]
[White "Sattarov_Bobur"]
[Black "WilsonPalencia21"]
[Result "1-0"]
[WhiteElo "2799"]
[BlackElo "2568"]
[TimeControl "180+1"]
[EndTime "9:06:40 PDT"]
[Termination "Sattarov_Bobur won on time"]

1. e4 {[%clk 0:03:00.9]} 1... c5 {[%clk 0:02:52.7]} 2. Nf3 {[%clk 0:03:00]} 2...
d6 {[%clk 0:02:52.2]} 3. d4 {[%clk 0:03:00.1]} 3... cxd4 {[%clk 0:02:52.6]} 4.
Nxd4 {[%clk 0:03:01]} 4... Nf6 {[%clk 0:02:52.9]} 5. f3 {[%clk 0:03:01.2]} 5...
e5 {[%clk 0:02:52.6]} 6. Nb3 {[%clk 0:03:01.3]} 6... a5 {[%clk 0:02:53.2]} 7. a4
{[%clk 0:03:00.6]} 7... Be7 {[%clk 0:02:52.1]} 8. Bb5+ {[%clk 0:03:00.3]} 8...
Nbd7 {[%clk 0:02:50.8]} 9. c4 {[%clk 0:02:55.3]} 9... O-O {[%clk 0:02:50.6]} 10.
Nc3 {[%clk 0:02:55.4]} 10... Nb6 {[%clk 0:02:47.9]} 11. Be3 {[%clk 0:02:54.5]}
11... Be6 {[%clk 0:02:47.7]} 12. Nd5 {[%clk 0:02:51]} 12... Nbxd5 {[%clk
0:02:42.6]} 13. cxd5 {[%clk 0:02:51.9]} 13... Bc8 {[%clk 0:02:41.5]} 14. O-O
{[%clk 0:02:51.4]} 14... Nh5 {[%clk 0:02:41.6]} 15. Qd2 {[%clk 0:02:47.6]} 15...
h6 {[%clk 0:02:38.6]} 16. Rac1 {[%clk 0:02:40.2]} 16... Nf4 {[%clk 0:02:33]} 17.
Rc2 {[%clk 0:02:37.8]} 17... Ng6 {[%clk 0:02:32.6]} 18. Rfc1 {[%clk 0:02:33.7]}
18... f5 {[%clk 0:02:32.7]} 19. Bd3 {[%clk 0:02:29.9]} 19... f4 {[%clk
0:02:25.3]} 20. Bf2 {[%clk 0:02:28.4]} 20... Bd7 {[%clk 0:02:25.2]} 21. Rc4
{[%clk 0:02:16.9]} 21... Bh4 {[%clk 0:02:24.4]} 22. Na1 {[%clk 0:02:14]} 22...
b5 {[%clk 0:02:21.6]} 23. axb5 {[%clk 0:02:10.6]} 23... Bxb5 {[%clk 0:02:21.7]}
24. R4c3 {[%clk 0:02:10.1]} 24... Bd7 {[%clk 0:02:15.4]} 25. Nc2 {[%clk
0:02:08.1]} 25... Rb8 {[%clk 0:02:14.1]} 26. Na3 {[%clk 0:02:08]} 26... Qg5
{[%clk 0:02:10.6]} 27. Rc7 {[%clk 0:02:05]} 27... Rf7 {[%clk 0:02:10.6]} 28. Bf1
{[%clk 0:01:57.8]} 28... Bxf2+ {[%clk 0:02:09.9]} 29. Qxf2 {[%clk 0:01:58.1]}
29... Nh4 {[%clk 0:02:09.9]} 30. Nc4 {[%clk 0:01:54.2]} 30... Rb3 {[%clk
0:02:05.3]} 31. Kh1 {[%clk 0:01:51.2]} 31... Qf6 {[%clk 0:00:49.9]} 32. Nxa5
{[%clk 0:01:44.6]} 32... Rb8 {[%clk 0:00:48]} 33. Nc4 {[%clk 0:01:37.2]} 33...
Rbf8 {[%clk 0:00:46.8]} 34. Nxd6 {[%clk 0:01:30.4]} 34... Qxd6 {[%clk 0:00:43]}
35. Qxh4 {[%clk 0:01:30.4]} 35... g5 {[%clk 0:00:40.9]} 36. Qf2 {[%clk
0:01:26.5]} 36... g4 {[%clk 0:00:40.7]} 37. Rb7 {[%clk 0:01:07.5]} 37... g3
{[%clk 0:00:37.1]} 38. Qc5 {[%clk 0:01:01.9]} 38... Qg6 {[%clk 0:00:33.8]} 39.
Qg1 {[%clk 0:00:49.5]} 39... gxh2 {[%clk 0:00:22.6]} 40. Qxh2 {[%clk 0:00:41.4]}
40... Be8 {[%clk 0:00:11.9]} 41. Rxf7 {[%clk 0:00:40.3]} 41... Rxf7 {[%clk
0:00:12]} 42. Rc8 {[%clk 0:00:36.7]} 42... Rb7 {[%clk 0:00:12]} 43. Qh3 {[%clk
0:00:30.7]} 43... Kh7 {[%clk 0:00:11.9]} 44. Rc2 {[%clk 0:00:11.2]} 44... Bd7
{[%clk 0:00:11.6]} 45. Qh4 {[%clk 0:00:11.5]} 45... Qg7 {[%clk 0:00:10.9]} 46.
Kh2 {[%clk 0:00:09.7]} 46... Rb6 {[%clk 0:00:11.1]} 47. Rc7 {[%clk 0:00:08.7]}
47... Rg6 {[%clk 0:00:11.2]} 48. Qf2 {[%clk 0:00:05.5]} 48... Rg5 {[%clk
0:00:11.2]} 49. Bb5 {[%clk 0:00:05.1]} 49... Bxb5 {[%clk 0:00:08.5]} 50. Rxg7+
{[%clk 0:00:05.2]} 50... Kxg7 {[%clk 0:00:09.4]} 51. Qc5 {[%clk 0:00:05]} 51...
Be8 {[%clk 0:00:07.9]} 52. Qe7+ {[%clk 0:00:04.6]} 52... Bf7 {[%clk 0:00:08.4]}
53. d6 {[%clk 0:00:05.2]} 1-0

[Event "Early-Titled-Tuesday-Blitz-March-12-2024"]
[Site "Chess.com"]
[Date "2024.03.12"]
[Round "6"]
[White "koncheto"]
[Black "TregubovP"]
[Result "1/2-1/2"]
[WhiteElo "2477"]
[BlackElo "2679"]
[TimeControl "180+1"]
[EndTime "9:06:41 PDT"]
[Termination "Game drawn by repetition"]

1. e4 {[%clk 0:03:00.9]} 1... c5 {[%clk 0:02:57.9]} 2. Nf3 {[%clk 0:03:01]} 2...
e6 {[%clk 0:02:57.6]} 3. d4 {[%clk 0:03:01.3]} 3... cxd4 {[%clk 0:02:57.2]} 4.
Nxd4 {[%clk 0:03:02.2]} 4... Nf6 {[%clk 0:02:57.5]} 5. Nc3 {[%clk 0:02:59.5]}
5... Nc6 {[%clk 0:02:57.7]} 6. a3 {[%clk 0:02:57.2]} 6... Be7 {[%clk 0:02:53]}
7. Be2 {[%clk 0:02:53.2]} 7... O-O {[%clk 0:02:52.7]} 8. O-O {[%clk 0:02:51.2]}
8... d5 {[%clk 0:02:53.3]} 9. exd5 {[%clk 0:02:50.6]} 9... exd5 {[%clk
0:02:50.6]} 10. Be3 {[%clk 0:02:48.6]} 10... Ne5 {[%clk 0:02:45.8]} 11. h3
{[%clk 0:02:46.8]} 11... Nc4 {[%clk 0:02:42]} 12. Bxc4 {[%clk 0:02:39.6]} 12...
dxc4 {[%clk 0:02:41.8]} 13. Qe2 {[%clk 0:02:40.5]} 13... Qc7 {[%clk 0:02:28.9]}
14. Ndb5 {[%clk 0:02:28.9]} 14... Qa5 {[%clk 0:02:21.7]} 15. Qxc4 {[%clk
0:02:26.5]} 15... Be6 {[%clk 0:02:20.8]} 16. Qh4 {[%clk 0:02:13]} 16... Nd5
{[%clk 0:02:06.1]} 17. Qg3 {[%clk 0:02:08.4]} 17... Nxc3 {[%clk 0:01:55.8]} 18.
Nxc3 {[%clk 0:02:02.1]} 18... Bf6 {[%clk 0:01:55.9]} 19. Rad1 {[%clk 0:01:46.6]}
19... Rad8 {[%clk 0:01:48.8]} 20. Bf4 {[%clk 0:01:32]} 20... Qf5 {[%clk
0:01:44.9]} 21. Bd6 {[%clk 0:01:21.3]} 21... Rfe8 {[%clk 0:01:41.8]} 22. Rd2
{[%clk 0:01:19.1]} 22... Bg5 {[%clk 0:01:28]} 23. f4 {[%clk 0:01:06.6]} 23...
Bf6 {[%clk 0:01:17.1]} 24. Rfd1 {[%clk 0:01:07.2]} 24... h5 {[%clk 0:01:11.9]}
25. Be5 {[%clk 0:01:06.6]} 25... h4 {[%clk 0:01:05.8]} 26. Qe3 {[%clk
0:01:04.1]} 26... Rxd2 {[%clk 0:00:52.9]} 27. Rxd2 {[%clk 0:01:03.4]} 27... Bd7
{[%clk 0:00:44.9]} 28. Qd4 {[%clk 0:00:45.4]} 28... Bxe5 {[%clk 0:00:41.1]} 29.
fxe5 {[%clk 0:00:45.2]} 29... Bc6 {[%clk 0:00:39.1]} 30. Qxh4 {[%clk 0:00:35]}
30... Qxe5 {[%clk 0:00:35.1]} 31. Re2 {[%clk 0:00:32.8]} 31... Qc5+ {[%clk
0:00:34.7]} 32. Qf2 {[%clk 0:00:33.4]} 32... Qg5 {[%clk 0:00:25.3]} 33. Rxe8+
{[%clk 0:00:18.1]} 33... Bxe8 {[%clk 0:00:25.3]} 34. Kh2 {[%clk 0:00:13.1]}
34... Bc6 {[%clk 0:00:23.6]} 35. Nd1 {[%clk 0:00:11.1]} 35... Qc1 {[%clk
0:00:18.7]} 36. Qe2 {[%clk 0:00:08.7]} 36... g6 {[%clk 0:00:16.8]} 37. b3 {[%clk
0:00:04]} 37... Qxa3 {[%clk 0:00:15.8]} 38. Ne3 {[%clk 0:00:04.6]} 38... Qd6+
{[%clk 0:00:15.5]} 39. Kh1 {[%clk 0:00:04.6]} 39... Qe5 {[%clk 0:00:15.7]} 40.
Qf2 {[%clk 0:00:03.8]} 40... Qe4 {[%clk 0:00:15.4]} 41. Ng4 {[%clk 0:00:03.7]}
41... Kg7 {[%clk 0:00:11]} 42. Qf6+ {[%clk 0:00:03.9]} 42... Kf8 {[%clk
0:00:10.6]} 43. Qd8+ {[%clk 0:00:03.2]} 43... Kg7 {[%clk 0:00:10.8]} 44. Qf6+
{[%clk 0:00:03]} 44... Kf8 {[%clk 0:00:11.1]} 45. Qh8+ {[%clk 0:00:02.8]} 45...
Ke7 {[%clk 0:00:11.2]} 46. Qf6+ {[%clk 0:00:03.7]} 46... Ke8 {[%clk 0:00:11.2]}
47. Qf2 {[%clk 0:00:04.6]} 47... Kd8 {[%clk 0:00:10.3]} 48. Qd2+ {[%clk
0:00:04.3]} 48... Kc7 {[%clk 0:00:10.1]} 49. Qa5+ {[%clk 0:00:04.2]} 49... Kc8
{[%clk 0:00:09.5]} 50. Qd2 {[%clk 0:00:04]} 50... a6 {[%clk 0:00:08.8]} 51. Kg1
{[%clk 0:00:04.3]} 51... Kb8 {[%clk 0:00:08.8]} 52. Qf2 {[%clk 0:00:03.6]} 52...
f5 {[%clk 0:00:08.6]} 53. Ne3 {[%clk 0:00:03.1]} 53... f4 {[%clk 0:00:08.1]} 54.
Nc4 {[%clk 0:00:03.7]} 54... g5 {[%clk 0:00:07.9]} 55. Nd6 {[%clk 0:00:01.7]}
55... Qd5 {[%clk 0:00:06.6]} 56. Nc4 {[%clk 0:00:02.3]} 56... Qe4 {[%clk
0:00:06.2]} 57. Qd2 {[%clk 0:00:02.2]} 57... Ka7 {[%clk 0:00:05.1]} 58. Qf2+
{[%clk 0:00:02.1]} 58... Kb8 {[%clk 0:00:05.4]} 1/2-1/2

[Event "Early-Titled-Tuesday-Blitz-March-12-2024"]
[Site "Chess.com"]
[Date "2024.03.12"]
[Round "6"]
[White "Boorchess"]
[Black "Chessmissile07"]
[Result "1-0"]
[WhiteElo "2539"]
[BlackElo "2913"]
[TimeControl "180+1"]
[EndTime "9:06:42 PDT"]
[Termination "Boorchess won by resignation"]

1. d4 {[%clk 0:03:00.9]} 1... a6 {[%clk 0:03:00]} 2. e4 {[%clk 0:03:00.5]} 2...
e6 {[%clk 0:02:59.4]} 3. Bd3 {[%clk 0:02:58.2]} 3... d5 {[%clk 0:02:55.5]} 4.
exd5 {[%clk 0:02:56.9]} 4... exd5 {[%clk 0:02:55.3]} 5. Bf4 {[%clk 0:02:54.5]}
5... Bd6 {[%clk 0:02:53.8]} 6. Qf3 {[%clk 0:02:52.5]} 6... Ne7 {[%clk
0:02:52.1]} 7. Ne2 {[%clk 0:02:50.7]} 7... O-O {[%clk 0:02:48.2]} 8. O-O {[%clk
0:02:48.7]} 8... Nbc6 {[%clk 0:02:43.7]} 9. c3 {[%clk 0:02:48]} 9... Be6 {[%clk
0:02:37.2]} 10. Nd2 {[%clk 0:02:47.3]} 10... Qd7 {[%clk 0:02:37]} 11. Bxd6
{[%clk 0:02:45.8]} 11... Qxd6 {[%clk 0:02:34.6]} 12. Qg3 {[%clk 0:02:45.7]}
12... Qxg3 {[%clk 0:02:30.2]} 13. Nxg3 {[%clk 0:02:41.7]} 13... Rae8 {[%clk
0:02:28.6]} 14. Rfe1 {[%clk 0:02:41.3]} 14... g6 {[%clk 0:02:23.8]} 15. Re2
{[%clk 0:02:35.8]} 15... Nc8 {[%clk 0:02:19.9]} 16. Rae1 {[%clk 0:02:33.1]}
16... Nd6 {[%clk 0:02:16.8]} 17. f3 {[%clk 0:02:20.6]} 17... Kg7 {[%clk
0:02:04.1]} 18. Kf2 {[%clk 0:02:19.5]} 18... h5 {[%clk 0:02:03.7]} 19. h4 {[%clk
0:02:18.7]} 19... Bd7 {[%clk 0:02:00.5]} 20. Nb3 {[%clk 0:02:10.5]} 20... Rxe2+
{[%clk 0:01:53.6]} 21. Rxe2 {[%clk 0:02:10.2]} 21... Re8 {[%clk 0:01:53.8]} 22.
Rxe8 {[%clk 0:02:05]} 22... Nxe8 {[%clk 0:01:51.7]} 23. Ne2 {[%clk 0:02:03]}
23... Bc8 {[%clk 0:01:48.3]} 24. Nf4 {[%clk 0:02:01.2]} 24... Nf6 {[%clk
0:01:48.1]} 25. Bc2 {[%clk 0:01:57.5]} 25... b6 {[%clk 0:01:44.2]} 26. Nc1
{[%clk 0:01:53.3]} 26... a5 {[%clk 0:01:43.4]} 27. Ba4 {[%clk 0:01:47.6]} 27...
Ne7 {[%clk 0:01:38.7]} 28. Ncd3 {[%clk 0:01:47]} 28... Nf5 {[%clk 0:01:28.4]}
29. g3 {[%clk 0:01:44.9]} 29... Nd6 {[%clk 0:01:28.2]} 30. Ne5 {[%clk
0:01:42.5]} 30... Kf8 {[%clk 0:01:17]} 31. Bb3 {[%clk 0:01:40.3]} 31... Bb7
{[%clk 0:01:13.2]} 32. a4 {[%clk 0:01:26.6]} 32... Ke7 {[%clk 0:01:10.9]} 33.
Bc2 {[%clk 0:01:25.7]} 33... c5 {[%clk 0:01:07]} 34. dxc5 {[%clk 0:01:18.8]}
34... bxc5 {[%clk 0:01:07.9]} 35. Nfd3 {[%clk 0:01:18.7]} 35... Ke6 {[%clk
0:00:57.9]} 36. c4 {[%clk 0:01:01.6]} 36... dxc4 {[%clk 0:00:13.6]} 37. Nxc4
{[%clk 0:01:01.1]} 37... Nxc4 {[%clk 0:00:14]} 38. Nxc5+ {[%clk 0:01:01]} 38...
Kd6 {[%clk 0:00:13.7]} 39. Nxb7+ {[%clk 0:01:01]} 39... Kc7 {[%clk 0:00:13.8]}
40. Bb3 {[%clk 0:00:55.7]} 40... Nxb2 {[%clk 0:00:10.9]} 41. Nxa5 {[%clk
0:00:54.8]} 41... Nd3+ {[%clk 0:00:05.4]} 42. Ke2 {[%clk 0:00:51.8]} 42... Ne5
{[%clk 0:00:05.3]} 43. f4 {[%clk 0:00:51.2]} 43... Neg4 {[%clk 0:00:04.3]} 44.
Bxf7 {[%clk 0:00:49.3]} 44... Ne4 {[%clk 0:00:03]} 45. Bxg6 {[%clk 0:00:46.6]}
45... Nxg3+ {[%clk 0:00:02]} 46. Kf3 {[%clk 0:00:46.9]} 46... Nf1 {[%clk
0:00:02.3]} 47. Bxh5 {[%clk 0:00:46.9]} 47... Nf6 {[%clk 0:00:02.8]} 48. Bg6
{[%clk 0:00:46.8]} 48... Kb6 {[%clk 0:00:02.8]} 49. Nc4+ {[%clk 0:00:46.1]}
49... Kc5 {[%clk 0:00:02.7]} 50. Ne3 {[%clk 0:00:46]} 50... Nd2+ {[%clk
0:00:02.4]} 51. Ke2 {[%clk 0:00:46]} 51... Nb3 {[%clk 0:00:02.8]} 52. h5 {[%clk
0:00:43.7]} 52... Nd4+ {[%clk 0:00:02.7]} 53. Kd3 {[%clk 0:00:43.6]} 53... Ne6
{[%clk 0:00:03.6]} 54. f5 {[%clk 0:00:43.3]} 54... Nf4+ {[%clk 0:00:03.5]} 55.
Kc3 {[%clk 0:00:42.5]} 55... N4xh5 {[%clk 0:00:04.4]} 56. Bxh5 {[%clk
0:00:42.1]} 56... Nxh5 {[%clk 0:00:05.3]} 57. Ng4 {[%clk 0:00:41.1]} 57... Nf4
{[%clk 0:00:04.7]} 58. f6 {[%clk 0:00:40.7]} 58... Nd5+ {[%clk 0:00:05]} 59. Kb3
{[%clk 0:00:41.1]} 59... Kd6 {[%clk 0:00:05.1]} 60. Kc4 {[%clk 0:00:40.3]} 60...
Nb6+ {[%clk 0:00:03.1]} 61. Kb5 {[%clk 0:00:40.4]} 61... Nd5 {[%clk 0:00:03.5]}
62. a5 {[%clk 0:00:40.6]} 62... Nc7+ {[%clk 0:00:03.4]} 63. Kb6 {[%clk
0:00:40.5]} 63... Nd5+ {[%clk 0:00:03.7]} 64. Kb7 {[%clk 0:00:40.7]} 64... Nb4
{[%clk 0:00:04.1]} 65. a6 {[%clk 0:00:40.5]} 65... Nc6 {[%clk 0:00:04]} 66. a7
{[%clk 0:00:40.5]} 66... Nxa7 {[%clk 0:00:04.3]} 67. Kxa7 {[%clk 0:00:40.8]}
67... Ke6 {[%clk 0:00:05.2]} 68. Kb7 {[%clk 0:00:41.1]} 68... Kf7 {[%clk
0:00:06.1]} 69. Kc7 {[%clk 0:00:41.5]} 69... Ke6 {[%clk 0:00:06.1]} 70. Kd8
{[%clk 0:00:41.8]} 70... Kf7 {[%clk 0:00:06.4]} 71. Kd7 {[%clk 0:00:42]} 71...
Kg6 {[%clk 0:00:07.1]} 72. Ke7 {[%clk 0:00:42.1]} 72... Kg5 {[%clk 0:00:07.9]}
73. f7 {[%clk 0:00:42.2]} 73... Kxg4 {[%clk 0:00:08.2]} 74. f8=Q {[%clk
0:00:42.5]} 74... Kg3 {[%clk 0:00:09.1]} 75. Qf5 {[%clk 0:00:42.3]} 1-0